fUSD/lending_fUSD_20240612
["ID","MTS","AMOUNT","RATE_DAILY","PERIOD"]
[329232578,1718191880322,-588.09,0.00022739,2]
[329232579,1718191880334,-544.81219854,0.00022739,2]
[329232580,1718191880345,-1242.65209544,0.00022739,2]
[329232581,1718191880356,-1282.20551898,0.00022739,2]
[329232582,1718191880393,-2260.06958569,0.00022739,2]
[329232583,1718191880406,-173.02,0.00022784,2]
[329232584,1718191880417,-996.78,0.000228,2]
[329232585,1718191880429,-177.14,0.0002285,2]
[329232586,1718191880440,-154.88,0.0002285,2]
[329232587,1718191880451,-976.65,0.0002285,2]
[329232588,1718191880462,-230.44,0.0002285,2]
[329232589,1718191880474,-294.39,0.0002285,2]
[329232590,1718191880487,-1018.41959778,0.00022874,2]
[329232591,1718191880498,-579.78746839,0.00022874,2]
[329232592,1718191880510,-569.71987791,0.00022874,2]
[329232593,1718191880521,-1114.48301451,0.00022874,2]
[329232594,1718191880538,-906.13745206,0.00022874,2]
[329232595,1718191880550,-615.62486054,0.00022874,2]
[329232596,1718191880562,-2673.8592,0.00022874,2]
[329232597,1718191880573,-1530.05,0.00022876,2]
[329232598,1718191880585,-776.23003295,0.00022876,2]
[329232599,1718191880596,-533.93,0.00022876,2]
[329232600,1718191880608,-651.3670728,0.00022876,2]
[329232601,1718191880619,-4895.27,0.000229,2]
[329232602,1718191880631,-504.07749511,0.00022926,2]
[329232603,1718191880642,-7587.97,0.00022999,2]
[329232604,1718191880653,-217.09972877,0.00023,2]
[329232605,1718191880664,-113631.71296366,0.00023,2]
[329232606,1718191881660,-311.1024342,0.00019587,2]
[329232607,1718191881674,-150.0,0.0002111,2]
[329232608,1718191881685,-2662.4275658,0.00023,2]
[329232609,1718191881701,-3642.672542,0.00023,2]
[329232610,1718191881714,-74166.30697918,0.00023,2]
[329232611,1718191881727,-18220.05,0.00023,2]
[329232612,1718191881739,-2245.19223316,0.00023,2]
[329232613,1718191881752,-1300.0,0.00023,2]
[329232614,1718191881768,-224.883706,0.00023,7]
[329232615,1718191881779,-200.0,0.00023,2]
[329232616,1718191881792,-150.0,0.00023,3]
[329232617,1718191881808,-176.0,0.00023,2]
[329232618,1718191881820,-1530.05,0.00023013,2]
[329232619,1718191881831,-221.0,0.0002309,2]
[329232620,1718191881844,-2000.0,0.000231,2]
[329232621,1718191881855,-1530.05,0.0002315,2]
[329232622,1718191881866,-151.0,0.00023171,2]
[329232623,1718191881878,-500.0,0.0002319,2]
[329232624,1718191881891,-500.0,0.00023199,2]
[329232625,1718191881903,-150.0,0.000232,3]
[329232626,1718191881913,-500.0,0.00023208,2]
[329232627,1718191881926,-500.0,0.00023217,2]
[329232628,1718191881937,-500.0,0.00023225,2]
[329232629,1718191881951,-500.0,0.00023234,2]
[329232630,1718191881963,-500.0,0.00023243,2]
[329232631,1718191881974,-500.0,0.00023252,2]
[329232632,1718191881987,-500.0,0.00023261,2]
[329232633,1718191881998,-500.0,0.00023269,2]
[329232634,1718191882010,-500.0,0.00023278,2]
[329232635,1718191882020,-1530.05,0.00023287,2]
[329232636,1718191882031,-160.0,0.00023287,2]
[329232637,1718191882042,-500.0,0.00023287,2]
[329232638,1718191882053,-379.99,0.00023288,2]
[329232639,1718191882064,-380.0,0.00023288,2]
[329232640,1718191882074,-260.9,0.00023288,2]
[329232641,1718191882085,-1530.05,0.00023424,2]
[329232642,1718191882096,-1602.61345,0.0002345,2]
[329232643,1718191882108,-960.53440708,0.00023458,2]
[329232644,1718191882119,-7115.0,0.00023463,7]
[329232645,1718191882132,-150.0,0.000235,3]
[329232646,1718191882144,-1530.05,0.00023561,2]
[329232647,1718191882157,-221.0,0.0002358,2]
[329232648,1718191882169,-5286.87059831,0.00023599,2]
[329232649,1718191882183,-2301.09940169,0.00023599,2]
[329232650,1718191882193,-238.08222909,0.000236,2]
[329232651,1718191882217,-372.91777091,0.000236,2]
[329232652,1718191882229,-150.0,0.000236,2]
[329232653,1718191882242,-122.27505362,0.000236,2]
[329232654,1718191882261,-485.85127002,0.000236,2]
[329232655,1718191882278,-273.63085231,0.000236,2]
[329232656,1718191882291,-1065.18041574,0.000236,2]
[329232657,1718191882303,-362.26956143,0.000236,2]
[329232658,1718191882315,-7984.97072717,0.000236,2]
[329232659,1718191882328,-9459.69586086,0.000236,2]
[329232660,1718191882340,-498.35828287,0.000236,2]
[329232661,1718191882380,-335.35420058,0.00019723,2]
[329232662,1718191882399,-164.64579942,0.00019723,2]
[329232663,1718191882410,-285.99608323,0.000236,2]
[329232664,1718191882423,-3793.98626351,0.000236,2]
[329232665,1718191882436,-626.86484445,0.000236,2]
[329232666,1718191883172,-500.0,0.0001986,2]
[329232667,1718191883184,-65206.28766066,0.000236,2]
[329232668,1718191883195,-305.0,0.000236,2]
[329232669,1718191883208,-793.21684162,0.00023698,4]
[329232670,1718191883219,-1530.05,0.00023698,2]
[329232671,1718191883229,-221.0,0.00023698,2]
[329232672,1718191883242,-221.0,0.00023698,2]
[329232673,1718191883253,-221.0,0.00023698,2]
[329232674,1718191883263,-221.0,0.00023698,2]
[329232675,1718191883273,-221.0,0.00023698,2]
[329232676,1718191883284,-202.0,0.00023698,2]
[329232677,1718191883294,-202.0,0.00023698,2]
[329232678,1718191883305,-202.0,0.00023698,2]
[329232679,1718191883316,-202.0,0.00023698,2]
[329232680,1718191883328,-202.0,0.00023698,2]
[329232681,1718191883339,-202.0,0.00023698,2]
[329232682,1718191883350,-202.0,0.00023698,2]
[329232683,1718191883365,-202.0,0.00023698,2]
[329232684,1718191883394,-202.0,0.00023698,2]
[329232685,1718191883404,-202.0,0.00023698,2]
[329232686,1718191883414,-200.0,0.00023698,2]
[329232687,1718191883425,-200.0,0.00023698,2]
[329232688,1718191883436,-200.0,0.00023698,2]
[329232689,1718191883447,-200.0,0.00023698,2]
[329232690,1718191883458,-200.0,0.00023698,2]
[329232691,1718191883468,-200.0,0.00023698,2]
[329232692,1718191883479,-200.0,0.00023698,2]
[329232693,1718191883489,-200.0,0.00023698,2]
[329232694,1718191883500,-215.0,0.00023698,2]
[329232695,1718191883510,-215.0,0.00023698,2]
[329232696,1718191883520,-215.0,0.00023698,2]
[329232697,1718191883531,-215.0,0.00023698,2]
[329232698,1718191883541,-215.0,0.00023698,2]
[329232699,1718191883552,-215.0,0.00023698,2]
[329232700,1718191883563,-215.0,0.00023698,2]
[329232701,1718191883573,-215.0,0.00023698,2]
[329232702,1718191883583,-215.0,0.00023698,2]
[329232703,1718191883593,-218.0,0.00023698,2]
[329232704,1718191883603,-218.0,0.00023698,2]
[329232705,1718191883616,-151.0,0.00023698,2]
[329232706,1718191883627,-150.0,0.000237,3]
[329232707,1718191883637,-4895.27,0.000238,2]
[329232708,1718191883647,-272.35474697,0.0002381,2]
[329232709,1718191883657,-631.65,0.00023835,2]
[329232710,1718191883667,-1530.05,0.00023835,2]
[329232711,1718191883678,-387.93123795,0.00023879,2]
[329232712,1718191883689,-829.8,0.00023918,2]
[329232713,1718191883699,-631.65,0.00023972,2]
[329232714,1718191883710,-1530.05,0.00023972,2]
[329232715,1718191883721,-7587.97,0.00023999,2]
[329232716,1718191883731,-767.81594624,0.00024,3]
[329232717,1718191883742,-381.64250604,0.00024,2]
[329232718,1718191883752,-329.70930884,0.00024,15]
[329232719,1718191883762,-460.17032969,0.00024,2]
[329232720,1718191883773,-9172.479157,0.00024,2]
[329232721,1718191883786,-24710.97112822,0.00024,2]
[329232722,1718191883796,-3982.13166147,0.00024,15]
[329232723,1718191883919,-422.24066894,0.00024,15]
[329232724,1718191883931,-983.63684318,0.00024,15]
[329232725,1718191982620,155.0,0.0002781,120]
[329232726,1718192112933,2243.07,0.00024329,30]
[329232728,1718192198219,951.75620783,0.0001,2]
[329232729,1718192303937,176.22,0.00027332,120]
[329232730,1718192460841,151.0,0.00024828,30]
[329232736,1718192688441,2056.14,0.00024329,30]
[329232744,1718192746002,-620.52,0.00012657,2]
[329232745,1718192746033,-1211.12212295,0.00013297,2]
[329232746,1718192746059,-1303.00649786,0.00013298,2]
[329232747,1718192746085,-161.94729935,0.00013898,2]
[329232748,1718192746112,-737.83308233,0.00013953,2]
[329232749,1718192746136,-326.89734476,0.00013953,2]
[329232750,1718192746164,-150.0,0.00013973,2]
[329232751,1718192746190,-300.0,0.00013989,2]
[329232752,1718192746216,-1289.05858059,0.0001399,2]
[329232753,1718192746244,-152.17,0.0001399,2]
[329232754,1718192746271,-152.17,0.0001399,2]
[329232755,1718192746299,-152.17,0.0001399,2]
[329232756,1718192746326,-152.17,0.0001399,2]
[329232757,1718192746354,-152.17,0.0001399,2]
[329232758,1718192746384,-152.17,0.0001399,2]
[329232759,1718192746412,-152.17,0.0001399,2]
[329232760,1718192746442,-152.17,0.0001399,2]
[329232761,1718192746472,-152.17,0.0001399,2]
[329232762,1718192746501,-152.17,0.0001399,2]
[329232763,1718192746528,-817.88,0.0001399,3]
[329232764,1718192746556,-201.67489333,0.00013998,2]
[329232765,1718192746581,-155.0,0.00013998,2]
[329232766,1718192746606,-181.46353453,0.00013998,2]
[329232767,1718192746633,-1498.39900082,0.00013998,2]
[329232768,1718192746660,-155.0,0.00013998,2]
[329232769,1718192746685,-155.0,0.00013998,2]
[329232770,1718192746711,-400.0,0.00013998,2]
[329232771,1718192746756,-525.21467051,0.00013998,2]
[329232772,1718192746781,-490.2568696,0.00013998,2]
[329232773,1718192746809,-263.84998264,0.00013998,2]
[329232774,1718192746834,-345.72385954,0.00013998,2]
[329232775,1718192746860,-1067.75598538,0.00013998,2]
[329232776,1718192746885,-7740.03294745,0.00013998,2]
[329232777,1718192746911,-386.26256298,0.00013998,2]
[329232778,1718192746934,-155.0,0.00013998,2]
[329232779,1718192746961,-193.21503737,0.00013998,2]
[329232780,1718192746988,-206.03170677,0.00013998,2]
[329232781,1718192747014,-307.45960582,0.00013998,2]
[329232782,1718192747038,-155.0,0.00013998,2]
[329232783,1718192747067,-307.12488168,0.00013998,2]
[329232784,1718192747096,-205.67039254,0.00013998,2]
[329232785,1718192747124,-362.84611958,0.00013998,2]
[329232786,1718192747151,-2194.64407392,0.00013998,2]
[329232787,1718192747180,-217.44360157,0.00013998,2]
[329232788,1718192747206,-688.78661675,0.00013998,2]
[329232789,1718192747232,-158.36805551,0.00013998,2]
[329232790,1718192747259,-7224.09951852,0.00013999,2]
[329232791,1718192747289,-34368.71115535,0.00014,2]
[329232794,1718192808601,162.02,0.00011685,2]
[329232803,1718192942231,169.7,0.00011508,2]
[329232823,1718193032397,-900.0,0.00013897,2]
[329232824,1718193032407,-437.81129389,0.00013898,2]
[329232825,1718193032417,-173.3285,0.00013899,2]
[329232826,1718193032428,-219.48903515,0.00013953,2]
[329232827,1718193032438,-337.0260168,0.00013953,2]
[329232828,1718193032449,-152.17,0.0001399,2]
[329232829,1718193032460,-152.17,0.0001399,2]
[329232830,1718193032470,-152.17,0.0001399,2]
[329232831,1718193032481,-152.17,0.0001399,2]
[329232832,1718193032491,-152.17,0.0001399,2]
[329232833,1718193032502,-152.17,0.0001399,2]
[329232834,1718193032513,-358.54332505,0.00013998,2]
[329232835,1718193032526,-268.0,0.00013998,2]
[329232836,1718193032536,-536.37434974,0.00013999,2]
[329232837,1718193032546,-408.36562215,0.00013999,2]
[329232838,1718193032557,-792.46810918,0.00013999,2]
[329232839,1718193032568,-209.22951034,0.00013999,2]
[329232840,1718193032578,-338.50142618,0.00013999,2]
[329232841,1718193032589,-365.45085217,0.00013999,2]
[329232842,1718193032602,-688.78661675,0.00013999,2]
[329232843,1718193032612,-263.84998264,0.00013999,2]
[329232844,1718193032623,-301291.25717454,0.00014,2]
[329232845,1718193032645,-9285.68112761,0.00014,2]
[329232846,1718193032952,-8661.34060982,0.00014,2]
[329232847,1718193033049,-5873.53360422,0.00014,2]
[329232861,1718193038180,-4945.53376372,0.00014,2]
[329232862,1718193038291,-500.24352524,0.00014,2]
[329232863,1718193038305,-18932.97014995,0.00014,2]
[329232864,1718193038318,-1115.92565592,0.00014,2]
[329232865,1718193038335,-272194.87668508,0.00014,2]
[329232866,1718193038352,-26408.13629518,0.00014,2]
[329232867,1718193038365,-6670.00918374,0.00014,2]
[329232868,1718193038726,-367.18970664,0.00014,2]
[329232869,1718193038854,-6954.3,0.00014,2]
[329232870,1718193038969,-42428.40670156,0.00014,2]
[329233100,1718193042015,-337196.70652323,0.00014,2]
[329233113,1718193042153,-1825.67710397,0.00014,2]
[329233116,1718193042165,-915.5299998,0.00014,2]
[329233119,1718193042193,-274.7021428,0.00014,2]
[329233158,1718193042605,-123659.41422078,0.00014,2]
[329233160,1718193042619,-5209.44557349,0.00014,2]
[329233164,1718193042651,-750.72000001,0.00014,2]
[329233169,1718193042693,-7268.21102522,0.00014,2]
[329233177,1718193042774,-1000.0,0.00014,2]
[329233188,1718193042909,-5021.01278894,0.00014,2]
[329233294,1718193044094,-4169.45253835,0.00014,2]
[329233296,1718193044107,-7032.34281809,0.00014,2]
[329233297,1718193044123,-2248.6199641,0.00014,2]
[329233542,1718193046997,-600.0,0.00013999,2]
[329233544,1718193047008,-157902.55111573,0.00014,2]
[329233546,1718193047021,-634.1177905,0.00014,2]
[329233602,1718193047743,-22865.01010497,0.00014,2]
[329234701,1718193234019,1884.79,0.00024329,30]
[329234702,1718193351487,616.4,0.00011765,2]
[329234703,1718193421695,162.02,0.00010934,2]
[329234707,1718193799373,1727.72,0.00024329,30]
[329234708,1718193853954,82501.52048661,0.00024,30]
[329234710,1718193881549,585.58,0.000111,2]
[329234737,1718194241614,-557.42,0.00012844,2]
[329234738,1718194241625,-280.21,0.00012844,2]
[329234739,1718194241637,-500.0,0.00012961,2]
[329234740,1718194241649,-541.55577053,0.00012962,2]
[329234741,1718194241660,-800.0,0.00012963,2]
[329234742,1718194241671,-180502.133116,0.00012964,2]
[329234743,1718194241681,-200.0,0.00012965,2]
[329234744,1718194241692,-23900.0,0.00012965,2]
[329234745,1718194241702,-707.77,0.00012965,2]
[329234746,1718194241712,-250.0,0.00012965,2]
[329234747,1718194241727,-176.22,0.00012965,2]
[329234748,1718194241737,-203.60773734,0.00013,2]
[329234749,1718194241750,-2486.48,0.00013006,2]
[329234750,1718194241760,-1303.00649786,0.00013298,2]
[329234751,1718194241771,-585.58,0.00013364,2]
[329234752,1718194241783,-250.0,0.00013407,2]
[329234753,1718194241793,-1917.9,0.00013407,2]
[329234754,1718194241803,-499.99,0.00013462,2]
[329234755,1718194241814,-189.3,0.00013542,2]
[329234756,1718194241824,-991.45,0.00013699,2]
[329234757,1718194241835,-173.04,0.00013699,2]
[329234758,1718194241845,-200.0,0.00013699,2]
[329234759,1718194241856,-1539.52,0.00013699,2]
[329234760,1718194241866,-192.08,0.0001372,2]
[329234761,1718194241876,-192.08,0.00013757,2]
[329234762,1718194241887,-192.08,0.00013795,2]
[329234763,1718194241897,-192.08,0.00013832,2]
[329234764,1718194241907,-192.08,0.0001387,2]
[329234765,1718194241921,-161.10902593,0.000139,2]
[329234766,1718194241931,-23224.32432182,0.000139,2]
[329234767,1718194241942,-864.0,0.000139,5]
[329234768,1718194241953,-177.19302388,0.000139,2]
[329234769,1718194241964,-160.31081192,0.000139,2]
[329234770,1718194241975,-326.89734475,0.000139,2]
[329234771,1718194241985,-192.08,0.00013908,2]
[329234772,1718194241995,-192.08,0.00013945,2]
[329234773,1718194242007,-192.08,0.00013983,2]
[329234774,1718194242018,-152.09,0.0001399,2]
[329234775,1718194242028,-152.09,0.0001399,2]
[329234776,1718194242038,-152.09,0.0001399,2]
[329234777,1718194242048,-218.15331281,0.00013998,2]
[329234778,1718194242058,-158.42799102,0.00013998,2]
[329234779,1718194242069,-344.13039777,0.00013998,2]
[329234780,1718194242078,-596.86866037,0.00013999,2]
[329234781,1718194242088,-25215.36867308,0.00014,2]
[329234790,1718194242277,-2702.22081626,0.00014,2]
[329234792,1718194242290,-261.18551078,0.00014,2]
[329234804,1718194242384,-3403.3758828,0.00014,2]
[329234807,1718194242397,-353.79,0.00014,2]
[329234810,1718194242410,-113955.86387257,0.00014,2]
[329234813,1718194242423,-968.08911481,0.00014,2]
[329234815,1718194242435,-11064.64326729,0.00014,2]
[329234818,1718194242447,-5927.48332718,0.00014,2]
[329234822,1718194242470,-82754.54900838,0.00014,2]
[329234827,1718194242488,-694.18349,0.00014,2]
[329234830,1718194242503,-6827.34329163,0.00014,2]
[329234832,1718194242524,-2852.80510775,0.00014,2]
[329234836,1718194242567,-966.43463374,0.00014,2]
[329234840,1718194242587,-463.61871879,0.00014,2]
[329234843,1718194242600,-739.69628748,0.00014,2]
[329234847,1718194242613,-4259.9738215,0.00014,2]
[329234851,1718194242627,-6821.44366136,0.00014,2]
[329234896,1718194242946,-27785.99999997,0.00014,2]
[329234899,1718194242959,-533581.12669901,0.00014,2]
[329234901,1718194242973,-80725.87573667,0.00014,2]
[329234903,1718194242986,-8413.35640812,0.00014,2]
[329234907,1718194242998,-5956.50683529,0.00014,2]
[329235056,1718194244280,-500.0,0.00012843,2]
[329235058,1718194244294,-6144.55524363,0.00014,2]
[329235064,1718194244448,-444.24779552,0.00014,2]
[329235075,1718194244593,-8495.59251908,0.00014,2]
[329235078,1718194244606,-31376.87120152,0.00014,2]
[329235080,1718194244619,-259.8,0.00014,2]
[329235082,1718194244634,-49346.20842744,0.00014,2]
[329235084,1718194244648,-3080.69023832,0.00014,2]
[329235086,1718194244661,-1883.15914355,0.00014,2]
[329235089,1718194244682,-1809.67537092,0.00014,2]
[329235093,1718194244717,-508875.52889296,0.00014,2]
[329235095,1718194244728,-3000.0,0.00014,2]
[329235097,1718194244739,-192.08,0.0001402,2]
[329235099,1718194244753,-192.08,0.00014058,2]
[329235101,1718194244770,-192.08,0.00014096,2]
[329235102,1718194244781,-192.08,0.00014133,2]
[329235104,1718194244792,-192.08,0.00014171,2]
[329235106,1718194244806,-192.08,0.00014209,2]
[329235108,1718194244829,-192.08,0.00014246,2]
[329235110,1718194244846,-192.08,0.00014284,2]
[329235113,1718194244865,-192.08,0.00014321,2]
[329235115,1718194244879,-192.08,0.00014359,2]
[329235117,1718194244897,-192.08,0.00014397,2]
[329235119,1718194244909,-192.08,0.00014434,2]
[329235121,1718194244922,-1000.0,0.00014465,2]
[329235122,1718194244935,-173.02,0.00014678,2]
[329235124,1718194244946,-224.6840112,0.00014918,2]
[329235126,1718194244957,-152.09,0.0001499,2]
[329235128,1718194244970,-152.09,0.0001499,2]
[329235142,1718194245203,-152.09,0.0001499,2]
[329235144,1718194245216,-152.09,0.0001499,2]
[329235146,1718194245240,-1559.17326316,0.00015,2]
[329235148,1718194245255,-84878.90309881,0.00015,2]
[329235151,1718194245289,-27440.89266912,0.00015,2]
[329235154,1718194245302,-4295.488236,0.00015,2]
[329235157,1718194245360,-1211.25875993,0.00015,2]
[329235160,1718194245383,-167389.37512855,0.00015,2]
[329235171,1718194245500,-748.724,0.00015,2]
[329235360,1718194247847,-19463.31778717,0.00015,2]
[329235371,1718194247964,-918.75679,0.00015,2]
[329235381,1718194248074,-1523.78274965,0.00015,2]
[329235393,1718194248197,-12889.70002755,0.00015,2]
[329235404,1718194248356,-371.92879527,0.00015,2]
[329235414,1718194248467,-694.73835201,0.00015,2]
[329235416,1718194248481,-2197.79675111,0.00015,2]
[329235447,1718194248922,-250.10479714,0.00015,2]
[329235955,1718194313061,155.0,0.0002781,120]
[329235957,1718194333175,155.0,0.0002781,120]
[329235958,1718194354999,155.0,0.0002781,120]
[329235959,1718194381292,155.0,0.0002781,120]
[329235960,1718194405299,200.2719658,0.0002781,120]
[329235991,1718195349442,-158.42799102,0.00012944,2]
[329235992,1718195349476,-260.5,0.00012945,2]
[329235993,1718195349512,-23900.0,0.0001332,2]
[329235994,1718195349540,-192.09,0.00013381,2]
[329235995,1718195349572,-471.17,0.00013395,2]
[329235996,1718195349614,-2252.97,0.00013431,2]
[329235997,1718195349643,-200.0,0.00013498,2]
[329235998,1718195349671,-1000.0,0.00013527,2]
[329235999,1718195349700,-250.0,0.00013675,2]
[329236000,1718195349727,-150.61,0.00013699,2]
[329236001,1718195349753,-200.0,0.00013699,2]
[329236002,1718195349801,-769.76,0.00013699,2]
[329236003,1718195349829,-192.09,0.0001373,2]
[329236004,1718195349853,-454.56,0.00013771,2]
[329236005,1718195349883,-2355.47,0.00013869,2]
[329236006,1718195349922,-300.0,0.00013899,2]
[329236007,1718195349949,-1013.12712756,0.000139,2]
[329236008,1718195349977,-6862.565222,0.00013989,2]
[329236009,1718195350009,-609.72,0.00013989,3]
[329236010,1718195350036,-454.63994464,0.00013997,2]
[329236011,1718195350064,-157.1634328,0.00013997,2]
[329236012,1718195350090,-2368.92760573,0.00013997,2]
[329236013,1718195350116,-3876.19058384,0.00013997,2]
[329236014,1718195350141,-344.13039777,0.00013997,2]
[329236015,1718195350170,-218.15331281,0.00013997,2]
[329236016,1718195350195,-386.62849784,0.00013997,2]
[329236017,1718195350219,-596.86866037,0.00013998,2]
[329236018,1718195350245,-917.14,0.00013998,2]
[329236019,1718195350268,-1429.49,0.00013998,2]
[329236020,1718195350299,-1588.32622362,0.00013999,2]
[329236046,1718195433301,-624.47,0.00013269,2]
[329236047,1718195433317,-3.65349577,0.00013998,2]
[329236048,1718195433581,-166.43893105,0.00013998,2]
[329236049,1718195433592,-260.5,0.00013998,2]
[329236050,1718195433610,-105298.06567881,0.00013999,2]
[329236051,1718195433630,-9768.13277904,0.00013999,2]
[329236052,1718195433645,-74288.20441799,0.00013999,2]
[329236053,1718195433900,-18336.04860414,0.00013999,2]
[329236054,1718195433925,-347.98279632,0.00013999,2]
[329236055,1718195433939,-947.931432,0.00014,2]
[329236056,1718195433956,-136719.40703697,0.00014,2]
[329236057,1718195433969,-2227.97824149,0.00014,2]
[329236058,1718195433990,-299.75188144,0.00014,2]
[329236059,1718195434010,-192.09,0.00014079,2]
[329236060,1718195434031,-250.0,0.00014123,2]
[329236061,1718195434043,-197.12003853,0.00014305,2]
[329236062,1718195434057,-200.0,0.000148,5]
[329236063,1718195434080,-2801.30672,0.0001485,2]
[329236064,1718195434091,-348.06110073,0.00014898,2]
[329236065,1718195434115,-164.38482657,0.000149,2]
[329236066,1718195434138,-21354.49232798,0.000149,2]
[329236067,1718195434159,-864.0,0.000149,5]
[329236068,1718195434170,-177.76126797,0.000149,2]
[329236069,1718195434186,-500.0,0.000149,5]
[329236070,1718195434201,-152.05,0.0001499,2]
[329236071,1718195434215,-152.05,0.0001499,2]
[329236072,1718195434227,-17011.14450951,0.00014994,2]
[329236073,1718195434244,-7042.55464418,0.00014994,2]
[329236074,1718195434258,-521.36640746,0.00014994,2]
[329236075,1718195434386,-571.61940899,0.00014994,2]
[329236076,1718195434406,-909.67996557,0.00014994,2]
[329236077,1718195434431,-582.92504737,0.00014994,2]
[329236078,1718195434450,-684.35390144,0.00014994,2]
[329236079,1718195434645,-1324.76351156,0.00014994,2]
[329236080,1718195434660,-28995.05783192,0.00014994,2]
[329236081,1718195434673,-2259.47975856,0.00014994,2]
[329236082,1718195434702,-800.0,0.00014994,2]
[329236120,1718195439281,-179.19946713,0.0001499,2]
[329236121,1718195439315,-33559.81807203,0.00014994,2]
[329236122,1718195439341,-471.15878941,0.00014994,2]
[329236123,1718195440212,-4924.28661199,0.00014994,2]
[329236124,1718195440228,-977.89923489,0.00014994,2]
[329236125,1718195440243,-25326.50108572,0.00014994,2]
[329236126,1718195440259,-406.13051263,0.00014998,2]
[329236127,1718195440277,-162.80706654,0.00014998,2]
[329236128,1718195440290,-309.27138856,0.00014998,2]
[329236129,1718195440307,-167.24815434,0.00014998,2]
[329236130,1718195440334,-288.66023203,0.00014999,2]
[329236131,1718195440370,-2199.22684884,0.00014999,2]
[329236132,1718195440387,-201.94300209,0.00014999,2]
[329236133,1718195440399,-39006.6137393,0.00015,2]
[329236279,1718195443685,-964.98446827,0.00014994,2]
[329236282,1718195443719,-769.67616808,0.00014994,2]
[329236285,1718195443739,-3376.98523795,0.00014994,2]
[329236287,1718195443753,-304536.35181718,0.00015,2]
[329236379,1718195445434,-2615.2382562,0.00015,2]
[329236381,1718195445450,-1086.61908017,0.00015,2]
[329236602,1718195448091,-197.73768128,0.00013999,2]
[329236605,1718195448105,-2323.1398246,0.000149,2]
[329236608,1718195448116,-260.5,0.00014993,2]
[329236611,1718195448130,-429632.81047554,0.00015,2]
[329236612,1718195448142,-5275.6635,0.00015,2]
[329236614,1718195448154,-3635.23057421,0.00015,2]
[329236616,1718195448165,-8812.81582167,0.00015,2]
[329236618,1718195448176,-172.47,0.00015004,2]
[329236620,1718195448186,-1000.0,0.00015218,2]
[329236621,1718195448199,-624.47,0.00015533,2]
[329236623,1718195448209,-197.1200385,0.00015635,2]
[329236625,1718195448220,-471.17,0.00016134,2]
[329236627,1718195448231,-21354.49232797,0.00016173,2]
[329236629,1718195448243,-1337.76,0.00016438,2]
[329236649,1718195448506,-167.01,0.00016451,2]
[329236653,1718195448517,-1461.0,0.000167,2]
[329236654,1718195448528,-576.0,0.000167,2]
[329236657,1718195448539,-1000.0,0.00016909,2]
[329236659,1718195448550,-197.1200385,0.00016966,2]
[329236661,1718195448560,-167.96,0.00017094,2]
[329236662,1718195448574,-2801.30672,0.0001735,2]
[329236664,1718195448590,-250.0,0.00017352,2]
[329236666,1718195448604,-21354.49232797,0.00017445,2]
[329236668,1718195448615,-624.47,0.00017797,2]
[329236670,1718195448627,-1460.34582441,0.00018,2]
[329236672,1718195448638,-652.23444481,0.00018,2]
[329236674,1718195448661,-197.1200385,0.00018296,2]
[329236676,1718195448671,-152.05,0.00018523,2]
[329236678,1718195448682,-4417.99,0.00018533,2]
[329236679,1718195448694,-29432.87,0.00018533,2]
[329236682,1718195448705,-1000.0,0.000186,2]
[329236683,1718195448725,-21354.49232797,0.00018718,2]
[329236685,1718195448739,-471.17,0.00018874,2]
[329236687,1718195448764,-800.0,0.000189,6]